Cogmind - Beta 11.1 @@@ ROGUE MODE // 2022.08.24 @ 16:29:37 Player: Love Result: Destroyed by Y-72 Warden with Quantum Rifle Performance ------------- Evolutions (6) 3000 Regions Visited (15) 3000 Robots Destroyed (125) 625 Value Destroyed (5186) 5186 Prototype IDs (7) 140 Alien Tech Used (0) 0 Bonus (2484) 2484 TOTAL SCORE: 14435 Bonus ------- High Alert Combat Kills 282 Entered DSFs 500 Aligned with FarCom 300 Met Warlord at Base 500 MAIN.C Attacked Warlord 500 Warlord Defense Kills 402 Cogmind --------- Core Integrity 0/1150 Matter 295/300 Energy 18/100 System Corruption 0% Temperature Cool (50) Movement Core (100) Ox1 Location -3/Proximity Caves Parts ------- > --- POWER (3) -------- (None) > --- PROPULSION (6) --- (None) > --- UTILITY (7) ------ Enhanced Optical Array Core Analyzer > --- WEAPON (3) ------- Gatling Laser > --- INVENTORY (5) ---- (None) Peak State ------------ > --- POWER ------------ Makeshift Power Source Makeshift Power Source Light Antimatter Reactor > --- PROPULSION ------- Armored Medium Treads Armored Medium Treads Armored Medium Treads Armored Medium Treads Armored Medium Treads Armored Medium Treads > --- UTILITY ---------- Advanced Heat Sink Large Storage Unit Enhanced Optical Array Core Analyzer Improved Core Shielding Layered Light Armor Plating Advanced Hardlight Generator > --- WEAPON ----------- Plasma Rifle Molecular Deconstructor > --- INVENTORY -------- Advanced Coolant Injector Improved Core Shielding Layered Light Armor Plating Gatling Laser Plasma Storm Matter Neutralizer Matter Neutralizer Scatter Rocket Array Segregator Signal Generator [Rating: 114] Favorites ----------- Power Makeshift Power Source Engine Makeshift Power Source Power Core Micro Nuclear Core Reactor Light Antimatter Reactor Propulsion Light Treads Treads Light Treads Leg Flexi-carbon Leg Wheel Wheel Hover Unit Aerolev Unit Flight Unit VTOL Module Utility Large Storage Unit Device Advanced Heat Sink Storage Large Storage Unit Processor Enhanced Optical Array Protection Medium Armor Plating Weapon Plasma Rifle Energy Gun Plasma Rifle Energy Cannon EM Pulse Cannon Ballistic Gun Autogun Ballistic Cannon Assault Cannon Launcher Grenade Launcher Special Weapon Mining Laser Slashing Weapon Segregator Build | -11 -10 -9 -9 -9 -8 -8 -7 -7 -6 -5 -4 -4 -4 -4 -3 ------- Run | Scr Mat Mat Min Exi Min Mat Fac DSF Fac Fac Fac Upp Upp War Pro Slots Evolved 12 | . . 2 . . . 2 2 . 2 2 2 . . . . Power 2 | . . . . . . . . . 1 1 . . . . . Propulsion 4 | . . 1 . . . 1 1 . . . 1 . . . . Utility 5 | . . 1 . . . 1 1 . 1 . 1 . . . . Weapon 1 | . . . . . . . . . . 1 . . . . . Parts Attached 223 | 9 6 9 15 . 3 48 2 . 24 36 27 6 13 17 8 Power 17 | 1 . 1 1 . . 1 . . 3 4 2 1 1 2 . Engine 13 | 1 . 1 1 . . 1 . . 2 3 1 1 1 1 . Core 2 | . . . . . . . . . 1 1 . . . . . Reactor 2 | . . . . . . . . . . . 1 . . 1 . Propulsion 48 | 2 . 2 . . . 9 1 . 4 7 11 1 2 8 1 Treads 23 | 2 . 1 . . . 5 1 . 4 . 1 . . 8 1 Leg 8 | . . . . . . . . . . 1 5 1 1 . . Wheel 11 | . . 1 . . . 2 . . . 6 1 . 1 . . Hover 1 | . . . . . . 1 . . . . . . . . . Flight 5 | . . . . . . 1 . . . . 4 . . . . Utility 46 | 2 4 1 3 . . 5 1 . 6 11 4 1 4 3 1 Device 20 | 1 1 . 1 . . 2 . . 3 6 3 1 1 1 . Storage 6 | 1 3 . . . . 1 . . . 1 . . . . . Processor 3 | . . . . . . . . . . 2 . . 1 . . Hackware . | . . . . . . . . . . . . . . . . Protection 17 | . . 1 2 . . 2 1 . 3 2 1 . 2 2 1 Artifact . | . . . . . . . . . . . . . . . . Weapon 112 | 4 2 5 11 . 3 33 . . 11 14 10 3 6 4 6 Energy Gun 37 | 4 1 2 . . . 9 . . 2 6 3 2 4 2 2 Energy Cannon 10 | . . . . . . 6 . . 3 . . . . . 1 Ballistic Gun 16 | . . 2 4 . 2 1 . . 3 3 1 . . . . Ballistic Cannon 10 | . . 1 2 . . 3 . . . 2 2 . . . . Launcher 27 | . 1 . 3 . 1 9 . . 3 3 4 1 . 1 1 Special Weapon 10 | . . . 2 . . 5 . . . . . . 2 1 . Impact Weapon . | . . . . . . . . . . . . . . . . Slashing Weapon 2 | . . . . . . . . . . . . . . . 2 Piercing Weapon . | . . . . . . . . . . . . . . . . Special Melee Weapon . | . . . . . . . . . . . . . . . . Unidentified Prototypes 7 | . . . . . . 5 . . . . 1 . 1 . . Corrupted Parts 2 | . . . . . . . . . 1 1 . . . . . System Corruption 2 | . . . . . . . . . 1 1 . . . . . Parts Lost 99 | . . . 3 . . 3 . 1 20 18 19 2 12 1 20 Power 12 | . . . 1 . . . . . 3 1 1 . 3 . 3 Propulsion 37 | . . . . . . 2 . 1 6 4 11 . 5 1 7 Utility 28 | . . . 2 . . 1 . . 7 6 3 1 2 . 6 Weapon 22 | . . . . . . . . . 4 7 4 1 2 . 4 Highest Loss Streak 13 | . . . 3 . . 2 . 1 12 13 10 2 6 1 10 To Critical Strikes . | . . . . . . . . . . . . . . . . Average Slot Usage (%) 87 | . 100 98 97 100 100 96 100 85 69 62 64 97 87 81 63 Engine 7 | . 14 11 9 11 11 9 7 7 4 . 1 8 7 9 1 Reactor 1 | . . . . . . . . . . . 1 5 4 4 . Treads 18 | . 28 22 33 33 33 31 38 35 20 5 2 . . 3 22 Leg 4 | . . . . . . . . . . . 4 30 22 9 . Wheel 2 | . . 9 . . . 1 . . . 5 6 . 3 4 . Device 8 | . 14 11 4 . . 8 7 7 9 13 5 14 11 8 2 Storage 7 | . 14 11 11 11 11 9 7 7 6 6 7 5 5 5 4 Processor 3 | . . . . . . . . . . 2 10 10 10 11 10 Protection 12 | . . 11 15 22 22 17 23 23 14 6 4 5 7 8 9 Energy Gun 6 | . 26 11 . . . 4 7 1 1 10 5 14 10 12 1 Energy Cannon 1 | . . . . . . 5 7 1 5 . . . . . 3 Ballistic Gun 2 | . . 2 12 . 3 . . . 5 3 2 . . . . Ballistic Cannon 1 | . . . . . . 4 . . . 1 3 . . . . Launcher 1 | . 1 6 . . . 2 . . . . 1 . . . . Special Weapon 3 | . . . 8 22 18 . . . . . . . 2 . 1 Naked Turns . | . . . . . . . . . . . . . . . . Heaviest Build 73 | 13 19 29 33 29 33 55 53 53 68 52 61 60 60 73 67 Greatest Support 162 | 40 40 63 63 63 63 83 103 103 103 50 110 130 130 162 162 Greatest Overweight (x) 22 | 2 . . . . . . . . 2 13 13 . . 22 5 Average Overweight (x) . | . . . . . . . . . . 1 . . . . . Largest Inventory Capacity 20 | 8 20 10 10 10 10 15 15 15 15 15 15 15 15 15 15 Average Capacity 13 | 7 9 10 10 10 10 14 15 15 15 15 15 15 15 15 14 Most Carried 15 | 3 10 10 9 9 10 15 14 15 14 15 15 15 15 15 15 Average Carried 11 | 1 6 8 8 9 9 13 12 13 10 11 12 14 13 14 12 Final Capacity 15 | 8 10 10 10 10 10 15 15 15 15 15 15 15 15 15 5 Final Carried 15 | 2 10 9 9 9 10 14 13 15 12 15 13 15 12 15 . Class Distribution -------------------- 50% | Mutant 30% | Scavenger-Mutant 13% | Scavenger-Tank 3% | Scavenger-Skirmisher Dominant Class ---------------- Mutant | -10/Materials Mutant | -9/Materials Mutant | -9/Mines Mutant | -9/Exiles Mutant | -8/Mines Mutant | -8/Materials Scavenger-Mutant | -7/Factory Scavenger-Mutant | -7/DSF Scavenger-Mutant | -6/Factory Scavenger-Tank | -5/Factory Scavenger-Mutant | -4/Factory Scavenger-Mutant | -4/Upper Caves Scavenger-Mutant | -4/Upper Caves Scavenger-Mutant | -4/Warlord Scavenger-Mutant | -3/Proximity Caves Resources | -11 -10 -9 -9 -9 -8 -8 -7 -7 -6 -5 -4 -4 -4 -4 -3 ----------- Run | Scr Mat Mat Min Exi Min Mat Fac DSF Fac Fac Fac Upp Upp War Pro Matter Collected 3870 | 290 60 29 376 . 150 789 . . 330 562 642 132 170 215 125 Remotely 74 | 64 10 . . . . . . . . . . . . . . Salvage Created 5402 | 148 47 117 226 . . 1252 . . 638 1018 846 438 263 119 290 Parts 259 | 11 3 7 28 . . 60 . . 36 57 31 6 5 5 10 Haulers Intercepted 3 | . . . . . . 1 . . . 1 1 . . . . Recyclers Shooed 10 | . . . 2 . . . . . 1 6 1 . . . . Parts Field Recycled . | . . . . . . . . . . . . . . . . Retrieved Matter . | . . . . . . . . . . . . . . . . Parts Self-Destructed 18 | . . . . . . . . . . . . 3 3 . 12 Prevented 1 | . . . . . . . . . . . . 1 . . . Kills | -11 -10 -9 -9 -9 -8 -8 -7 -7 -6 -5 -4 -4 -4 -4 -3 ------- Run | Scr Mat Mat Min Exi Min Mat Fac DSF Fac Fac Fac Upp Upp War Pro Combat Hostiles Destroyed 96 | . 1 1 18 . . 25 . . 10 9 13 3 5 3 8 Melee 1 | . . . . . . . . . 1 . . . . . . Guns 33 | . 1 1 4 . . 4 . . 5 4 7 3 3 . 1 Cannons 20 | . . . . . . 10 . . 2 3 2 . . . 3 AOE 37 | . . . 14 . . 10 . . 2 2 3 . . 3 3 Classes Destroyed 17 | 3 1 3 4 . . 3 . . 1 . 1 . . . 1 Worker 15 | 1 . . 4 . . 1 . . . 9 . . . . . Builder 3 | . . . 1 . . 1 . . . 1 . . . . . Tunneler 4 | 2 . . 2 . . . . . . . . . . . . Hauler 3 | . . . . . . 1 . . . 1 1 . . . . Recycler 5 | 1 . . . . . 1 . . 1 2 . . . . . Operator 1 | . . 1 . . . . . . . . . . . . . Watcher 7 | . . 2 . . . 1 . . . 3 1 . . . . Swarmer 14 | . . . 4 . . 2 . . 3 . 4 . . . 1 Grunt 36 | . 1 . 3 . . 10 . . 2 1 7 3 . 3 6 Brawler 1 | . . . . . . . . . . . 1 . . . . Duelist 1 | . . . . . . . . . . . . . . . 1 Sentry 12 | . . 1 . . . 8 . . 3 . . . . . . Demolisher 2 | . . . 2 . . . . . . . . . . . . Specialist 11 | . . . . . . 4 . . . 4 . . 3 . . Hunter 1 | . . . . . . 1 . . . . . . . . . Programmer 9 | . . . . . . . . . 2 4 1 . 2 . . Assembled 9 | . . . 9 . . . . . . . . . . . . Best Kill Streak 16 | 3 1 4 16 . . 4 . . 3 7 5 3 2 3 5 Combat Bots Only 15 | . 1 1 15 . . 3 . . 3 2 5 3 2 3 5 Max Kills in Single Turn 4 | 1 1 1 4 . . 3 . . 1 2 2 1 1 3 2 Gunslinging 1 | . . . 1 . . . . . . . . . . . . Exploded 4 | . . . 4 . . 2 . . 1 2 2 . . 3 2 Melee 1 | . . . . . . . . . 1 . . . . . . Uniques/NPCs Destroyed . | . . . . . . . . . . . . . . . . Combat | -11 -10 -9 -9 -9 -8 -8 -7 -7 -6 -5 -4 -4 -4 -4 -3 -------- Run | Scr Mat Mat Min Exi Min Mat Fac DSF Fac Fac Fac Upp Upp War Pro Damage Taken 14878 | 32 10 103 428 . . 1232 . 192 2710 1887 2752 344 1039 257 3892 Core 2218 | 32 . 18 70 . . 190 . 34 318 390 604 58 95 . 409 Absorbed by Shields 349 | . . . . . . . . . . 13 . . . 128 208 Redirected to Shielding 688 | . . . . . . 79 . . 128 122 130 22 103 . 104 Regen/Repaired (Parts) 90 | . . . . . . 90 . . . . . . . . . Core Remaining (%) 76 | 87 87 . . . 78 65 . 95 62 61 . . . . . Volleys Fired 388 | 15 3 12 31 . 2 77 . . 62 51 51 16 42 5 21 Largest 3 | 2 2 2 2 . 2 2 . . 2 3 3 3 3 2 2 Hottest 218 | 100 90 90 200 . 200 161 . . 126 193 212 208 218 150 105 Shots Fired 669 | 30 6 19 61 . 5 134 . . 90 111 81 34 65 9 24 Gun 412 | 30 6 18 36 . 1 35 . . 48 87 53 34 46 8 10 Cannon 148 | . . . 4 . . 56 . . 34 20 25 . . . 9 Launcher 57 | . . 1 14 . . 24 . . 8 4 3 . . 1 2 Special 52 | . . . 7 . 4 19 . . . . . . 19 . 3 Kinetic 210 | . . . 40 . 1 25 . . 48 54 42 . . . . Thermal 240 | 16 3 12 7 . 4 23 . . . 43 36 27 42 8 19 Explosive 43 | . . 1 14 . . 18 . . . 4 3 . . 1 2 Electromagnetic 155 | 14 3 6 . . . 68 . . 42 10 . 7 5 . . Robot Hit Streak 19 | 5 2 6 10 . 2 13 . . 19 17 14 9 12 3 11 Robot Miss Streak 10 | 4 6 1 2 . 1 2 . . 3 5 10 2 4 1 4 Penetration Max 2 | . . . . . . . . . 1 2 . . . . . Secondary Targets 4 | . . . 2 . . . . . . . . 1 1 . . Max Gunslinging Chain 1 | . . . 1 . . . . . . . . 1 1 . . Shots Hit Robots 429 | 11 2 12 41 . 2 76 . . 61 80 59 27 34 5 19 Core Hits 340 | 5 1 6 60 . . 51 . . 28 56 51 20 10 22 30 Critical Kills 10 | . . . . . . . . . 1 4 5 . . . . Critical Parts Destroyed 12 | . . . . . . . . . 1 2 9 . . . . Critical Strikes 31 | 2 . . . . . 4 . . 2 7 14 . 2 . . Burn 4 | 2 . . . . . . . . . . . . 2 . . Destroy 22 | . . . . . . . . . 2 6 14 . . . . Blast 1 | . . . . . . 1 . . . . . . . . . Corrupt 4 | . . . . . . 3 . . . 1 . . . . . Melee Attacks 4 | . . . . . . . . . . . . . . . 4 Thermal 4 | . . . . . . . . . . . . . . . 4 Impact . | . . . . . . . . . . . . . . . . Slashing . | . . . . . . . . . . . . . . . . Piercing . | . . . . . . . . . . . . . . . . Sneak Attacks . | . . . . . . . . . . . . . . . . Combat Hostiles . | . . . . . . . . . . . . . . . . Follow-up Attacks . | . . . . . . . . . . . . . . . . Damage Inflicted 12737 | 185 37 183 1662 . 48 2741 . . 1155 1914 1676 566 741 719 1110 Guns 5237 | 164 37 182 372 . . 344 . . 667 1006 848 566 694 110 247 Cannons 2194 | . . . 64 . . 1013 . . 231 335 261 . . . 290 Explosions 5029 | 21 . 1 1082 . . 1331 . . 227 573 565 . 47 609 573 Melee . | . . . . . . . . . . . . . . . . Ramming 37 | . . . . . . 5 . . 30 . 2 . . . . Kinetic 2246 | . . . 436 . . 355 . . 667 461 327 . . . . Thermal 4292 | 108 . 99 144 . 48 531 . . . 800 782 461 672 110 537 Explosive 3753 | . . 1 1082 . . 635 . . 98 573 182 . . 609 573 Electromagnetic 2409 | 77 37 83 . . . 1215 . . 360 80 383 105 69 . . Impact . | . . . . . . . . . . . . . . . . Slashing . | . . . . . . . . . . . . . . . . Piercing . | . . . . . . . . . . . . . . . . Highest Corruption 17 | . . . 3 3 3 . . . 7 17 3 3 . . . Average Corruption 4 | . . . 3 3 3 . . . 5 9 2 3 . . . Corruption Purged 5 | . . . . . . . . . . . . . 5 . . Corruption Blocked . | . . . . . . . . . . . . . . . . Effects 82 | . . . 12 15 7 . . . 12 19 5 12 . . . Message Errors 21 | . . . 5 4 2 . . . 5 2 . 3 . . . Matter Fused 22 | . . . 3 3 2 . . . 3 7 1 3 . . . Heat Flow Errors 10 | . . . 1 4 2 . . . 2 . . 1 . . . Energy Discharges 6 | . . . 1 2 . . . . . 1 1 1 . . . Parts Rejected 1 | . . . . . . . . . . 1 . . . . . Data Loss (minor) 9 | . . . 1 1 . . . . 1 4 1 1 . . . Data Loss (major) 1 | . . . 1 . . . . . . . . . . . . Misfires 3 | . . . . . 1 . . . . . 1 1 . . . Alerts 4 | . . . . 1 . . . . . 1 . 2 . . . Weapon Failures 5 | . . . . . . . . . 1 3 1 . . . . Overload Shots . | . . . . . . . . . . . . . . . . Overflow Damage 239 | . . . 45 . 4 114 . . . 33 . . 26 . 17 Projectiles 40 | . . . 10 . 4 20 . . . . . . . . 6 Explosions 199 | . . . 35 . . 94 . . . 33 . . 26 . 11 Melee . | . . . . . . . . . . . . . . . . Knockbacks 13 | . . . 2 . . 2 . . 1 5 3 . . . . Impact 1 | . . . . . . . . . 1 . . . . . . Kinetic 12 | . . . 2 . . 2 . . . 5 3 . . . . Secondary . | . . . . . . . . . . . . . . . . Self-Inflicted Damage 946 | 32 . 10 35 . . 14 . . 27 340 277 . 75 . 136 Shots 24 | 1 . 1 2 . . 2 . . 1 6 4 . 1 . 6 Rammed 18 | . . . . . . 2 . . 13 . 3 . . . . Targets Rammed 18 | . . . . . . 2 . . 13 . 3 . . . . Kicked . | . . . . . . . . . . . . . . . . Crushed . | . . . . . . . . . . . . . . . . Highest Temperature 341 | 286 66 22 87 279 248 341 . . 294 142 315 170 202 148 83 Average Temperature 74 | 110 37 12 30 130 81 40 . . 124 38 91 61 119 59 28 Received Heat Transfer 2536 | . 6 54 39 . . 396 . . 507 27 476 60 27 28 916 Effects 8 | 3 . . . . . 1 . . . . 3 . 1 . . Energy Bleed 2 | . . . . . . 1 . . . . . . 1 . . Interference 6 | 3 . . . . . . . . . . 3 . . . . Siege Activations . | . . . . . . . . . . . . . . . . Robots Corrupted 2 | . . . . . . 1 . . 1 . . . . . . Combat Hostiles 1 | . . . . . . 1 . . . . . . . . . Parts Fried 12 | . . . . . . 8 . . 3 . 1 . . . . Impact Corruptions . | . . . . . . . . . . . . . . . . Robots Melted 1 | . . . . . . . . . . . 1 . . . . Combat Hostiles 1 | . . . . . . . . . . . 1 . . . . Parts Melted 14 | 1 . . . . . . . . . 4 3 . 6 . . Heat Transferred 8584 | 407 . 296 300 . 100 461 . . . 1685 1750 1044 1420 250 871 Parts Sabotaged . | . . . . . . . . . . . . . . . . Parts Stolen . | . . . . . . . . . . . . . . . . Parts Stripped . | . . . . . . . . . . . . . . . . Power Chain Reactions 6 | 1 . . . . . 2 . . 1 . 1 . 1 . . Missiles Intercepted . | . . . . . . . . . . . . . . . . Alert | -11 -10 -9 -9 -9 -8 -8 -7 -7 -6 -5 -4 -4 -4 -4 -3 ------- Run | Scr Mat Mat Min Exi Min Mat Fac DSF Fac Fac Fac Upp Upp War Pro Peak Influence 829 | 20 63 150 257 . 1 829 376 268 327 329 484 . . . . Initial 376 | . 13 26 58 . . . 376 263 140 83 161 . . . . Average 200 | 9 45 75 126 . . 290 376 261 181 130 326 . . . . Maximum Alert Level 3 | . . . 1 . . 3 1 1 1 1 2 . . . . Low Security (%) 60 | 100 100 100 74 . 100 47 . . 78 65 21 . . . . Level 1 22 | . . . 25 . . 16 100 100 21 34 38 . . . . Level 2 13 | . . . . . . 28 . . . . 39 . . . . Level 3 2 | . . . . . . 7 . . . . . . . . . Level 4 . | . . . . . . . . . . . . . . . . Level 5 . | . . . . . . . . . . . . . . . . High Security . | . . . . . . . . . . . . . . . . Max Security . | . . . . . . . . . . . . . . . . Squads Dispatched 23 | . . 1 1 . . 7 . . 5 8 1 . . . . Investigation 2 | . . . . . . 2 . . . . . . . . . Extermination 3 | . . . . . . . . . 1 2 . . . . . Reinforcement 12 | . . 1 1 . . 5 . . 1 3 1 . . . . Assault . | . . . . . . . . . . . . . . . . Garrison 6 | . . . . . . . . . 3 3 . . . . . Intercept . | . . . . . . . . . . . . . . . . Searches Triggered . | . . . . . . . . . . . . . . . . Construction Impeded 2 | . . . 1 . . . . . . . 1 . . . . Haulers Reinforced 1 | . . . . . . . . . . 1 . . . . . Active Scanning Responses . | . . . . . . . . . . . . . . . . Cargo Convoy Interrupts . | . . . . . . . . . . . . . . . . Stealth | -11 -10 -9 -9 -9 -8 -8 -7 -7 -6 -5 -4 -4 -4 -4 -3 --------- Run | Scr Mat Mat Min Exi Min Mat Fac DSF Fac Fac Fac Upp Upp War Pro Distress Signals 5 | . 1 . . . . 3 . . . 1 . . . . . Communications Jammed . | . . . . . . . . . . . . . . . . Distress Signals . | . . . . . . . . . . . . . . . . Times Spotted 181 | . 4 6 30 . . 48 . 2 13 14 22 3 5 16 18 Peak Tracking Total 23 | . 4 4 23 . . 5 . 2 4 4 9 3 2 6 11 Tactical Retreats 12 | . 1 . 2 . . 2 . 1 2 . 3 . . 1 . Traps | -11 -10 -9 -9 -9 -8 -8 -7 -7 -6 -5 -4 -4 -4 -4 -3 ------- Run | Scr Mat Mat Min Exi Min Mat Fac DSF Fac Fac Fac Upp Upp War Pro Traps Triggered 2 | . . . . . . . . . 1 1 . . . . . Indirectly . | . . . . . . . . . . . . . . . . Trap Hack Attempts . | . . . . . . . . . . . . . . . . Triggered . | . . . . . . . . . . . . . . . . Disarmed . | . . . . . . . . . . . . . . . . Reprogrammed . | . . . . . . . . . . . . . . . . Reused . | . . . . . . . . . . . . . . . . Traps Extracted . | . . . . . . . . . . . . . . . . Installed . | . . . . . . . . . . . . . . . . Triggered 26 | . . . . . . . . . . . . . . 26 . Machines | -11 -10 -9 -9 -9 -8 -8 -7 -7 -6 -5 -4 -4 -4 -4 -3 ---------- Run | Scr Mat Mat Min Exi Min Mat Fac DSF Fac Fac Fac Upp Upp War Pro Machines Disabled 31 | . . 1 . . . 9 . . 3 5 12 . 1 . . Max in Single Turn 6 | . . 1 . . . 2 . . 2 1 6 . 1 . . Machines Sabotaged . | . . . . . . . . . . . . . . . . Garrisons Compromised . | . . . . . . . . . . . . . . . . Overloaded Fab Kills . | . . . . . . . . . . . . . . . . Hacking | -11 -10 -9 -9 -9 -8 -8 -7 -7 -6 -5 -4 -4 -4 -4 -3 --------- Run | Scr Mat Mat Min Exi Min Mat Fac DSF Fac Fac Fac Upp Upp War Pro Machines Accessed 33 | . . 2 . 1 . 14 2 . 5 4 . . . 5 . Terminals 19 | . . 1 . . . 9 2 . 3 4 . . . . . Fabricators . | . . . . . . . . . . . . . . . . Repair Stations 2 | . . . . . . 2 . . . . . . . . . Recycling Units 3 | . . 1 . . . 1 . . 1 . . . . . . Scanalyzers 3 | . . . . . . 2 . . 1 . . . . . . Garrison Access . | . . . . . . . . . . . . . . . . Total Hacks 104 | . . 3 . 23 . 47 3 . 7 7 . . . 14 . Successful 87 | . . 2 . 23 . 36 2 . 5 5 . . . 14 . Failed 17 | . . 1 . . . 11 1 . 2 2 . . . . . Catastrophic . | . . . . . . . . . . . . . . . . Database Lockouts . | . . . . . . . . . . . . . . . . Manual 6 | . . . . . . . . . . . . . 1 5 . Terminals 40 | . . 1 . . . 24 3 . 5 7 . . . . . Fabricators . | . . . . . . . . . . . . . . . . Repair Stations 4 | . . . . . . 4 . . . . . . . . . Recycling Units 5 | . . 2 . . . 2 . . 1 . . . . . . Scanalyzers 18 | . . . . . . 17 . . 1 . . . . . . Garrison Access . | . . . . . . . . . . . . . . . . Terminal Hacks 64 | . . 1 . 23 . 15 2 . 4 5 . . . 14 . Record 55 | . . 1 . 23 . 11 . . 2 4 . . . 14 . Part Schematic 1 | . . . . . . . 1 . . . . . . . . Robot Schematic 1 | . . . . . . . . . 1 . . . . . . Open DSF 2 | . . . . . . . 1 . . 1 . . . . . Emergency Access Points 2 | . . . . . . 2 . . . . . . . . . Locate Traps 1 | . . . . . . . . . 1 . . . . . . Dispatch Records 1 | . . . . . . 1 . . . . . . . . . Investigation Status 1 | . . . . . . 1 . . . . . . . . . Fabricator Hacks . | . . . . . . . . . . . . . . . . Repair Station Hacks 3 | . . . . . . 3 . . . . . . . . . Scan Component 2 | . . . . . . 2 . . . . . . . . . Repair 1 | . . . . . . 1 . . . . . . . . . Recycling Unit Hacks 4 | . . 1 . . . 2 . . 1 . . . . . . Report Inventory 1 | . . 1 . . . . . . . . . . . . . Retrieve Matter 3 | . . . . . . 2 . . 1 . . . . . . Scanalyzer 16 | . . . . . . 16 . . . . . . . . . Insert Component 8 | . . . . . . 8 . . . . . . . . . Analyze 8 | . . . . . . 8 . . . . . . . . . Garrison Access Hacks . | . . . . . . . . . . . . . . . . Unauthorized Hacks . | . . . . . . . . . . . . . . . . Terminals . | . . . . . . . . . . . . . . . . Fabricators . | . . . . . . . . . . . . . . . . Repair Stations . | . . . . . . . . . . . . . . . . Recycling Units . | . . . . . . . . . . . . . . . . Scanalyzers . | . . . . . . . . . . . . . . . . Garrison Access . | . . . . . . . . . . . . . . . . Data Cores Recovered . | . . . . . . . . . . . . . . . . Used . | . . . . . . . . . . . . . . . . Hacking Detections 21 | . . 2 . . . 12 1 . 3 3 . . . . . Full Trace Events 2 | . . . . . . 2 . . . . . . . . . Feedback Events . | . . . . . . . . . . . . . . . . Feedback Blocked . | . . . . . . . . . . . . . . . . Robot Schematics Acquired 1 | . . . . . . . . . 1 . . . . . . Robots Built . | . . . . . . . . . . . . . . . . Authchips . | . . . . . . . . . . . . . . . . Time . | . . . . . . . . . . . . . . . . Total Robot Build Rating . | . . . . . . . . . . . . . . . . Part Schematics Acquired 9 | . . . . . . 8 1 . . . . . . . . Parts Built . | . . . . . . . . . . . . . . . . Authchips . | . . . . . . . . . . . . . . . . Time . | . . . . . . . . . . . . . . . . Total Part Build Rating . | . . . . . . . . . . . . . . . . Parts Repaired 1 | . . . . . . 1 . . . . . . . . . Time 32 | . . . . . . 32 . . . . . . . . . Parts Recycled . | . . . . . . . . . . . . . . . . Recycled Matter . | . . . . . . . . . . . . . . . . Retrieved Matter 148 | . . . . . . . . . 148 . . . . . . Retrieved Components . | . . . . . . . . . . . . . . . . Parts Scanalyzed 8 | . . . . . . 8 . . . . . . . . . Part Schematics Acquired 8 | . . . . . . 8 . . . . . . . . . Parts Damaged 1 | . . . . . . 1 . . . . . . . . . Bothacking | -11 -10 -9 -9 -9 -8 -8 -7 -7 -6 -5 -4 -4 -4 -4 -3 ------------ Run | Scr Mat Mat Min Exi Min Mat Fac DSF Fac Fac Fac Upp Upp War Pro Used RIF Installer . | . . . . . . . . . . . . . . . . Robots Hacked . | . . . . . . . . . . . . . . . . Non-combat . | . . . . . . . . . . . . . . . . Combat . | . . . . . . . . . . . . . . . . Robot Hacks Applied . | . . . . . . . . . . . . . . . . Relay Couplers Released . | . . . . . . . . . . . . . . . . Fabnet Peak Effective % . | . . . . . . . . . . . . . . . . Robots Rewired . | . . . . . . . . . . . . . . . . Allies Hacked . | . . . . . . . . . . . . . . . . Hacks Repelled . | . . . . . . . . . . . . . . . . Allies | -11 -10 -9 -9 -9 -8 -8 -7 -7 -6 -5 -4 -4 -4 -4 -3 -------- Run | Scr Mat Mat Min Exi Min Mat Fac DSF Fac Fac Fac Upp Upp War Pro Total Allies . | . . . . . . . . . . . . . . . . Largest Group . | . . . . . . . . . . . . . . . . Highest-Rated Group . | . . . . . . . . . . . . . . . . Highest-Rated Ally . | . . . . . . . . . . . . . . . . Total Orders . | . . . . . . . . . . . . . . . . Ally Attacks . | . . . . . . . . . . . . . . . . Total Damage . | . . . . . . . . . . . . . . . . Kills . | . . . . . . . . . . . . . . . . Allies Corrupted . | . . . . . . . . . . . . . . . . Allies Melted . | . . . . . . . . . . . . . . . . Intel | -11 -10 -9 -9 -9 -8 -8 -7 -7 -6 -5 -4 -4 -4 -4 -3 ------- Run | Scr Mat Mat Min Exi Min Mat Fac DSF Fac Fac Fac Upp Upp War Pro Robot Analysis Total . | . . . . . . . . . . . . . . . . Derelict Logs Recovered 3 | . . . 1 . . . . . . . . 1 1 . . Drone Launches . | . . . . . . . . . . . . . . . . Drone Recoveries . | . . . . . . . . . . . . . . . . Exploration | -11 -10 -9 -9 -9 -8 -8 -7 -7 -6 -5 -4 -4 -4 -4 -3 ------------- Run | Scr Mat Mat Min Exi Min Mat Fac DSF Fac Fac Fac Upp Upp War Pro Turns Passed 14226 | 163 385 261 1115 961 563 3666 203 75 706 1473 552 626 990 2186 301 Spaces Moved 6732 | 56 218 133 537 575 322 1464 125 46 270 488 213 457 675 1041 112 Core 56 | 11 . . . . . . . . . 38 5 . . 1 1 Treads 4195 | 45 218 133 537 575 322 1464 125 46 270 193 17 . . 139 111 Legs 2102 | . . . . . . . . . . 22 47 457 675 901 . Wheels 359 | . . . . . . . . . . 235 124 . . . . Hover . | . . . . . . . . . . . . . . . . Flight 20 | . . . . . . . . . . . 20 . . . . Fastest Speed 50 | 50 160 160 160 160 160 160 160 160 160 80 80 120 105 105 165 Average Speed 156 | 141 160 160 160 160 160 160 160 160 168 200 148 120 115 165 171 Slowest Speed 1150 | 160 160 160 160 160 160 160 160 160 330 700 700 120 120 1150 300 Overloaded Moves . | . . . . . . . . . . . . . . . . Propulsion Burnouts . | . . . . . . . . . . . . . . . . Robots Hopped . | . . . . . . . . . . . . . . . . Cave-ins Triggered . | . . . . . . . . . . . . . . . . Exploration Rate (%) 43 | 6 30 19 81 89 73 88 4 47 7 18 5 64 60 84 25 Regions Visited 15 Branch Regions 7 Pre-discovered Areas 2 | . . . . 1 . . . . . . . . . 1 . Known Exits Taken 1 | . . . . . . . 1 . . . . . . . . Unknown Exits Taken 13 | 1 1 1 1 1 1 1 . . 1 1 1 1 1 1 . Scrap Searched 6 | . . . 1 . . . . . . . . 4 1 . . Spaces Dug 17 | . . . . . . 17 . . . . . . . . . Terrain Destroyed 644 | 3 . 10 100 . 2 214 . . 56 96 77 . 7 8 71 Melee . | . . . . . . . . . . . . . . . . Projectile 30 | . . . . . 2 24 . . 1 1 . . 1 . 1 AOE 614 | 3 . 10 100 . . 190 . . 55 95 77 . 6 8 70 Terrain Rammed . | . . . . . . . . . . . . . . . . Walls Destroyed . | . . . . . . . . . . . . . . . . Machines Disabled . | . . . . . . . . . . . . . . . . Actions | -11 -10 -9 -9 -9 -8 -8 -7 -7 -6 -5 -4 -4 -4 -4 -3 --------- Run | Scr Mat Mat Min Exi Min Mat Fac DSF Fac Fac Fac Upp Upp War Pro Total 9625 | 109 249 162 720 616 356 2606 129 49 415 878 354 505 800 1496 181 Wait 2019 | 21 1 . 134 42 29 958 . . 31 263 29 17 60 400 34 Move 6717 | 55 217 132 536 574 321 1463 124 45 269 487 212 456 674 1040 112 Hop . | . . . . . . . . . . . . . . . . Pick Up 180 | 9 15 5 3 . 1 34 2 2 16 35 25 8 5 19 1 Fast Attach . | . . . . . . . . . . . . . . . . Attach 125 | 7 . 4 4 . . 7 2 . 19 30 20 5 9 13 5 Detach 5 | . . . 1 . . . . . . 1 . . 2 1 . Swap 98 | 2 6 5 11 . 3 41 . . 5 6 7 1 4 4 3 Drop 65 | . 7 4 . . . 24 1 2 . 5 7 1 3 10 1 Fire 388 | 15 3 12 31 . 2 77 . . 62 51 51 16 42 5 21 Melee 4 | . . . . . . . . . . . . . . . 4 Ram 3 | . . . . . . . . . . . 3 . . . . Kick . | . . . . . . . . . . . . . . . . Crush 15 | . . . . . . 2 . . 13 . . . . . . Escape Stasis . | . . . . . . . . . . . . . . . . Rewire 6 | . . . . . . . . . . . . 1 1 4 . Trap . | . . . . . . . . . . . . . . . . Miscellaneous . | . . . . . . . . . . . . . . . . Route ------- -11/Scrapyard -10/Materials -9/Materials (discovered 2 exits: [*Min] / [*Sto]) -9/Mines -9/Exiles (discovered 2 exits: [*Min x2]) -8/Mines -8/Materials -7/Factory -7/DSF -6/Factory (discovered 2 exits: *Fac / [*Low]) -5/Factory -4/Factory -4/Upper Caves -4/Upper Caves -4/Warlord -3/Proximity Caves (discovered 1 exit: Res) History --------- Turn | Location | Event 9 | -11/Scrapyard | Discovered new exit (range 16) 164 | -11/Scrapyard | Entered Materials 305 | -10/Materials | Build established: Mutant 486 | -10/Materials | Discovered new exit (range 14) 549 | -10/Materials | Entered another Materials area 549 | -9/Materials | Evolved 2 slots: Propulsion x1, Utility x1 676 | -9/Materials | Discovered new exit (range 5) 801 | -9/Materials | Discovered new exit (range 7) 810 | -9/Materials | Entered Mines 1294 | -9/Mines | Assembled infested the area 1351 | -9/Mines | Lost 3 parts (1p2u) 1360 | -9/Mines | Destroyed 15 combat bots 1633 | -9/Mines | Learned location of 1 exit from Lower Caves 1901 | -9/Mines | Deemed a non-threat by the Exiles lab entrance 1901 | -9/Mines | Discovered new exit (range 5) 1925 | -9/Mines | Entered Exiles 1953 | -9/Exiles | Discovered new exit (range 15) 2001 | -9/Exiles | Met 8R-AWN 2026 | -9/Exiles | Met EX-HEX 2097 | -9/Exiles | Learned location of Zion (-7) 2122 | -9/Exiles | Met EX-DEC 2185 | -9/Exiles | Visited The Gauntlet 2474 | -9/Exiles | Discovered new exit (range 14) 2591 | -9/Exiles | Met EX-BIN 2697 | -9/Exiles | Aligned with FarCom system 2699 | -9/Exiles | Given EX-Vault access code 2886 | -9/Exiles | Entered Mines 3343 | -8/Mines | Discovered new exit (range 5) 3449 | -8/Mines | Entered Materials 3449 | -8/Materials | Evolved 2 slots: Propulsion x1, Utility x1 4394 | -8/Materials | Repaired Imp. Treads 7080 | -8/Materials | Discovered new exit (range 10) 7115 | -8/Materials | Entered Factory 7115 | -7/Factory | Evolved 2 slots: Propulsion x1, Utility x1 7318 | -7/Factory | Identified exit to DSF 7318 | -7/Factory | Entered DSF 7368 | -7/DSF | Discovered new exit (range 14) 7380 | -7/DSF | Additional patrols routed to DSF 7393 | -7/DSF | Entered Factory 7393 | -6/Factory | Evolved 2 slots: Power x1, Utility x1 7418 | -6/Factory | Build established: Scavenger-Mutant 7545 | -6/Factory | Garrison activated, responded to threat 7669 | -6/Factory | Lost 12 parts (2p5n4u1w) 7790 | -6/Factory | Discovered new exit (range 15) 7898 | -6/Factory | Discovered new exit (range 11) 8047 | -6/Factory | Lost 5 parts (1n2u2w) 8099 | -6/Factory | Entered another Factory area 8099 | -5/Factory | Evolved 2 slots: Power x1, Weapon x1 8391 | -5/Factory | Build established: Scavenger-Tank 8493 | -5/Factory | Identified exit to DSF 8776 | -5/Factory | Lost 3 parts (1n1u1w) 8932 | -5/Factory | System corruption reached 10% 8972 | -5/Factory | Lost 13 parts (1p2n5u5w) 9360 | -5/Factory | Garrison activated, responded to threat 9523 | -5/Factory | Discovered new exit (range 5) 9572 | -5/Factory | Entered another Factory area 9572 | -4/Factory | Evolved 2 slots: Propulsion x1, Utility x1 9624 | -4/Factory | Found Prototype Launcher 9625 | -4/Factory | Identified Scatter Rocket Array 9629 | -4/Factory | Found Scatter Rocket Array 9679 | -4/Factory | Build established: Scavenger-Skirmisher 9749 | -4/Factory | Lost 7 parts (6n1u) 9935 | -4/Factory | Lost 10 parts (1p4n2u3w) 10028 | -4/Factory | Discovered new exit (range 17) 10072 | -4/Factory | Core integrity fell below 50% 10124 | -4/Factory | Entered Upper Caves 10124 | -4/Upper Caves | Spotted B-86 Titan 10221 | -4/Upper Caves | Learned Research emergency access door positions 10299 | -4/Upper Caves | Build established: Scavenger-Mutant 10744 | -4/Upper Caves | Discovered new exit (range 6) 10750 | -4/Upper Caves | Entered another Upper Caves area 11019 | -4/Upper Caves | Learned Research emergency access door positions 11106 | -4/Upper Caves | Acquired the password to a Derelict Tinkerer's latest research 11191 | -4/Upper Caves | Found Prototype Special Weapon 11195 | -4/Upper Caves | Identified Molecular Deconstructor 11372 | -4/Upper Caves | Lost 3 parts (2p1n) 11387 | -4/Upper Caves | Caught by Unaware searching for contraband prototypes 11570 | -4/Upper Caves | Caught by Unaware searching for contraband prototypes 11633 | -4/Upper Caves | Lost 6 parts (1p2n2u1w) 11696 | -4/Upper Caves | Discovered new exit (range 20) 11740 | -4/Upper Caves | Entered Warlord 11781 | -4/Warlord | System corruption cleaned by Quarantine Array 11806 | -4/Warlord | Discovered new exit (range 14) 12003 | -4/Warlord | Found Signal Generator 12005 | -4/Warlord | Found Signal Generator 12069 | -4/Warlord | Found Prototype Energy Gun 12497 | -4/Warlord | Build established: Scavenger-Tank 12851 | -4/Warlord | Learned Quarantine stockpile data 12851 | -4/Warlord | Learned Research emergency access door positions 12851 | -4/Warlord | Learned location of Testing (-2) 12851 | -4/Warlord | Learned 4 Testing zone layouts 12851 | -4/Warlord | Learned 4 Research zone layouts 12851 | -4/Warlord | Learned 4 Armory zone layouts 12852 | -4/Warlord | Learned Factory garrison access intel 12993 | -4/Warlord | Warlord's base attacked by MAIN.C 13013 | -4/Warlord | Met Warlord 13234 | -4/Warlord | Build established: Scavenger-Mutant 13343 | -4/Warlord | Warlord forces counterattacked 13644 | -4/Warlord | Spotted Striker 13668 | -4/Warlord | Warlord base infiltrated, sounded retreat 13926 | -4/Warlord | Entered Proximity Caves 13927 | -3/Proximity Caves | Identified exit to Research 14056 | -3/Proximity Caves | Lost 10 parts (3p2n3u2w) 14203 | -3/Proximity Caves | Attracted the attention of an 0b10 base 14211 | -3/Proximity Caves | Core integrity fell below 20% 14227 | -3/Proximity Caves | Destroyed by Y-72 Warden with Quantum Rifle Last Messages --------------- Arm. Medium Treads destroyed. S-43 Plague destroyed. Arm. Medium Treads destroyed. S-43 Plague destroyed. Lgt. Antimatter Reactor fries itself beyond repair. Destroyed Xenon Bombardment Thruster. Lrg. Storage Unit destroyed. Arm. Medium Treads destroyed. Hvy. Machine Gun fries itself beyond repair. Imp. Medium Treads destroyed. Dropped Prototype Energy Gun. Acquired Gatling Laser. Xenon Bombardment Thruster fries itself beyond repair. Imp. Core Shielding destroyed. Critical hit (Burn: +50). Matter Neutralizer destroyed. Xenon Bombardment Thruster fries itself beyond repair. Lyr. Light Armor Plating destroyed. Critical hit (Burn: +37). [Achievement: 10k Club] Map ----- +----------------------------------------------------+ | ?????????????????????????????????????????????????? | | ?????????????????????????????????????????????????? | | ?????????????????????????????????????????????????? | | ?????????????????????????????????????????????????? | | ??????????########?????????????????##????????????? | | ?????????## ####????????????? #????????????? | | ########## ##???????????? #????????????? | | ##??###????? #???#????????? | | ##?# ###??? #?# ##???????? | | ######### ## ### ##? ## #???????? | | ????????# #??# # ## #????????? | | #?????### ##### ## #??????????? | | #?????# #???????????? | | # #?????????????? | | ################ ##?????????????? | | ???? ??????# #???????# ????? | | ## ????? ?????# #????? ???? | | ??## ???? """" ????# ##### ??? | | ????# ???" """" ???# ??? | | ????### ???# """" #### ??? | | ??????# ??????? + # ;###### #???? | | ??????# ????????????# /%g ##????????#####???? | | ?????? ????????????# %g Y ##?????????????????? | | ?????? ????????????# =;*s ##?????????????????? | | ?????? ?????????????# #sg #?????????????????? | | ?????? ??????????? #@[ #?????????????????? | | ????? ? ???????? #][ #?????????????????? | | ????? ? ?????? ? " "?# #?????????????????? | | ??????? ???"""" ?? """"?# ???????????????? | | ???????????###???++####?# ?????????????? | | ???????????????????????? ##; #??????????? | | ???????????????????????? #?## ##??????????? | | ???????????????????????? #???# ####???????????? | | ???????????????????????? ????###??????????????? | | ???????????????????????? ?????????????????????? | | ???????????????????????? ?????????????????????? | | ????????????????????????####?????????????????????? | | ?????????????????????????????????????????????????? | | ?????????????????????????????????????????????????? | | ?????????????????????????????????????????????????? | | ?????????????????????????????????????????????????? | | ?????????????????????????????????????????????????? | | ?????????????????????????????????????????????????? | | ?????????????????????????????????????????????????? | | ?????????????????????????????????????????????????? | | ?????????????????????????????????????????????????? | | ?????????????????????????????????????????????????? | | ?????????????????????????????????????????????????? | | ?????????????????????????????????????????????????? | | ?????????????????????????????????????????????????? | +----------------------------------------------------+ Best States ------------- Heat Dissipation 81 Coolant Potential 100 Energy Generation 41 Energy Capacity 450 Matter Stores 300 Matter Capacity 400 Sight Range 22 Robot Scan Range 14 Terrain Scan Range 16 Terrain Scan Density 10 Corruption Containment 8 Armor Coverage 450 Resistance: KI 20 Core Shielding 30 Weapon Shielding 66 Evasion (%) 55 Core Analysis 6 Recoil Reduction 6 Energy Filtering 45 Trap Extractor Capacity 4 Item Schematics ----------------- Grenade Launcher | -8/Materials | Scanalyzed Missile Launcher | -8/Materials | Scanalyzed Autogun | -8/Materials | Scanalyzed Mining Laser | -8/Materials | Scanalyzed Imp. Weapon Shielding | -8/Materials | Scanalyzed Arm. Wheel | -8/Materials | Scanalyzed Particle Charger | -8/Materials | Scanalyzed Reactive Plating | -8/Materials | Scanalyzed Imp. Particle Charger | -7/Factory | Hacked Robot Schematics ------------------ A-02 Transporter | -6/Factory | Hacked Fabricated ------------ Nothing Alien Tech Used ----------------- None Achievements -------------- 10k Club A Powerful Ally? Charge!!! Deconstruction Fist Fight Hunted I Survived The Infestation It's Just You Leap Before You Look Oops Power Corrupts Respectable Loadout Troublemaker Challenges ------------ None Game ------ Seed FusionRagnarokBooster Manual? 0 Play Time 03:12:58 Cumulative 11.6 hours Start 2022.08.23 @ 23:02:11 End 2022.08.24 @ 16:29:37 Sessions 1 Manual Loads 0 Difficulty Rogue Special Mode None Game No. 4 Rogue 4 Adventurer 0 Explorer 0 Win Type - Total 0 Types 0/0/0/0/0/0/0/0/0 Lore% 14 Gallery% 15 Achievement% 16 Wizard Run 0 Options --------- ASCII 0 Keyboard 0 Movement Mouse Keybinds 0 Fullscreen 1 Font 18/SmallcapsGlow Map View 76x50 Tactical HUD 0 Map Filters NONE Filters NONE Steam 1 RUN: 4966fead-eead-48a8-ab1f-ec11329fbf38